bitfinex-derivatives/quotes_BTCF0:USTF0_20240917
["timestamp","ask_amount","ask_price","bid_price","bid_amount"]
[1726612313012,0.36952896,60235.0,60234.0,0.771028]
[1726612313417,0.36952896,60235.0,60234.0,0.272988]
[1726612313607,0.36952896,60235.0,60234.0,0.273988]
[1726612314619,0.36952896,60235.0,60234.0,0.772028]
[1726612314814,0.36952896,60235.0,60234.0,0.273988]
[1726612315016,0.37052896,60235.0,60234.0,0.274988]
[1726612316315,0.37052896,60235.0,60234.0,0.773028]
[1726612316818,0.37052896,60235.0,60234.0,0.274988]
[1726612317418,0.3618,60235.0,60234.0,0.274988]
[1726612318205,0.001,60235.0,60234.0,1.373028]
[1726612318411,0.00249034,60237.0,60236.0,0.082986]
[1726612318914,0.00249034,60237.0,60236.0,0.629526]
[1726612319613,0.00349034,60237.0,60236.0,0.630526]
[1726612319815,0.00349034,60237.0,60236.0,0.631526]
[1726612322019,0.00349034,60237.0,60236.0,0.133486]
[1726612324621,0.08647434,60237.0,60236.0,0.084986]
[1726612324918,0.11853051,60237.0,60236.0,0.002]
[1726612325119,0.08647434,60237.0,60236.0,0.002]
[1726612325420,0.11853052,60237.0,60236.0,0.002]
[1726612325814,0.08647434,60237.0,60236.0,0.002]
[1726612326720,0.11853089,60237.0,60236.0,0.002]
[1726612330214,0.08647434,60237.0,60236.0,0.002]
[1726612330825,0.13607434,60237.0,60236.0,0.002]
[1726612331009,0.16598,60233.0,60232.0,0.00249008]
[1726612331214,0.35598,60233.0,60232.0,0.00249008]
[1726612332123,0.35598,60233.0,60232.0,0.00349008]
[1726612332723,0.35598,60233.0,60232.0,0.00449008]
[1726612336023,0.38804345,60233.0,60232.0,0.00449008]
[1726612336425,0.38804344,60233.0,60232.0,0.00449008]
[1726612336721,0.35598,60233.0,60232.0,0.00449008]
[1726612341631,0.3644787,60233.0,60232.0,0.00449008]
[1726612342428,0.1744787,60233.0,60232.0,0.00449008]
[1726612345338,0.20654097,60233.0,60232.0,0.00449008]
[1726612345538,0.20654097,60233.0,60219.0,0.0941]
[1726612345539,0.083007,60221.0,60219.0,0.0941]
[1726612345736,0.083008,60220.0,60219.0,0.128009]
[1726612346034,0.213008,60220.0,60219.0,0.083009]
[1726612346736,0.083008,60220.0,60219.0,0.088009]
[1726612346937,0.083008,60220.0,60219.0,0.093009]
[1726612347237,0.3608,60223.0,60219.0,0.01]
[1726612347442,0.3608,60223.0,60222.0,0.213005]
[1726612347648,0.00249068,60226.0,60225.0,0.083001]
[1726612348034,0.00249068,60226.0,60225.0,0.273001]
[1726612348435,0.0112433,60226.0,60225.0,0.273001]
[1726612348745,0.00249068,60226.0,60225.0,0.273001]
[1726612349042,0.00249068,60226.0,60225.0,0.274001]
[1726612350644,0.00349068,60226.0,60225.0,0.275001]
[1726612351141,0.36930456,60230.0,60229.0,0.082995]
[1726612351142,0.00850456,60230.0,60229.0,0.082995]
[1726612351443,0.36942166,60235.0,60234.0,0.082988]
[1726612351653,0.36942166,60235.0,60234.0,0.272988]
[1726612352646,0.36942166,60235.0,60234.0,0.273988]
[1726612354048,0.00862166,60235.0,60234.0,0.273988]
[1726612354245,0.08547534,60237.0,60236.0,0.082986]
[1726612354634,0.09412659,60237.0,60236.0,0.082986]
[1726612354843,0.01114159,60237.0,60236.0,0.082986]
[1726612355944,0.01114159,60237.0,60236.0,0.083986]
[1726612356835,0.01214159,60237.0,60236.0,0.084986]
[1726612357749,0.09512559,60237.0,60236.0,0.084986]
[1726612366353,0.01214159,60237.0,60236.0,0.084986]
[1726612369159,0.09512559,60237.0,60236.0,0.084986]
[1726612369349,0.12718114,60237.0,60236.0,0.084986]
[1726612375555,0.09512559,60237.0,60236.0,0.002]
[1726612378859,0.09512559,60237.0,60236.0,0.084986]
[1726612381764,0.01214159,60237.0,60236.0,0.084986]
[1726612382477,0.04419682,60237.0,60236.0,0.084986]
[1726612385476,0.04419679,60237.0,60236.0,0.084986]
[1726612387868,0.04419679,60237.0,60236.0,0.214986]
[1726612388978,0.51042339,60248.0,60236.0,1.23004]
[1726612389190,0.3608,60248.0,60247.0,0.21297]
[1726612389397,0.40143244,60248.0,60247.0,0.21297]
[1726612389693,0.3608,60248.0,60247.0,0.21297]
[1726612389895,0.3608,60248.0,60247.0,0.27297]
[1726612391083,0.082959,60256.0,60255.0,0.082959]
[1726612393199,0.3608,60258.0,60257.0,0.082957]
[1726612393386,0.36965642,60258.0,60257.0,0.082957]
[1726612394900,0.36965642,60258.0,60257.0,0.083957]
[1726612395896,0.36965642,60258.0,60257.0,0.084957]
[1726612398099,0.45261142,60258.0,60257.0,0.002]
[1726612398406,0.64261142,60258.0,60257.0,0.002]
[1726612399097,0.67465783,60258.0,60257.0,0.002]
[1726612399795,0.67465769,60258.0,60257.0,0.002]
[1726612400396,0.48465769,60258.0,60257.0,0.002]
[1726612405493,0.45261142,60258.0,60257.0,0.002]
[1726612411199,0.45261142,60258.0,60257.0,0.084957]
[1726612411200,0.00885642,60258.0,60257.0,0.084957]
[1726612411398,0.00248948,60259.0,60258.0,0.082955]
[1726612411603,0.01139952,60259.0,60258.0,0.082955]
[1726612411797,0.00248948,60259.0,60258.0,0.082955]
[1726612412008,0.00248948,60259.0,60258.0,0.212955]
[1726612413005,0.00248948,60259.0,60258.0,0.213955]
[1726612413408,0.01107503,60259.0,60258.0,0.213955]
[1726612413601,0.00248948,60259.0,60258.0,0.213955]
[1726612414115,0.00248948,60259.0,60258.0,0.214955]
[1726612414818,0.36935162,60265.0,60262.0,0.082949]
[1726612414819,0.082949,60263.0,60262.0,0.082949]
[1726612415114,0.082949,60263.0,60262.0,0.212949]
[1726612416104,0.082949,60263.0,60262.0,0.213949]
[1726612416309,0.03204392,60263.0,60262.0,0.213949]
[1726612416610,0.36935162,60265.0,60264.0,0.082947]
[1726612418212,0.04059428,60265.0,60264.0,0.083947]
[1726612418407,0.00855162,60265.0,60264.0,0.084947]
[1726612418602,0.44374,60270.0,60269.0,0.08294]
[1726612418808,0.47578018,60270.0,60269.0,0.21294]
[1726612419815,0.48440146,60270.0,60269.0,0.21394]
[1726612420014,0.48440104,60270.0,60269.0,0.08394]
[1726612420710,0.45236128,60270.0,60269.0,0.08394]
[1726612421104,0.45236128,60270.0,60269.0,0.08494]
[1726612422015,0.45236128,60270.0,60269.0,0.002]
[1726612423815,1.55012128,60270.0,60269.0,0.002]
[1726612424004,1.55012128,60270.0,60250.0,0.04967984]
[1726612424005,0.082954,60259.0,60250.0,0.04967984]
[1726612424208,0.5508,60260.0,60249.0,0.04967984]
[1726612424409,0.5508,60260.0,60247.0,0.36268]
[1726612424410,0.3608,60260.0,60251.0,0.082965]
[1726612424721,0.08296,60255.0,60251.0,0.082965]
[1726612424921,0.082961,60254.0,60248.0,0.19]
[1726612425121,0.082961,60254.0,60250.0,0.001]
[1726612425619,0.3608,60260.0,60250.0,0.001]
[1726612425620,0.082963,60253.0,60250.0,0.001]
[1726612426018,0.082963,60253.0,60251.0,0.001]
[1726612427519,0.082964,60252.0,60249.0,0.001]
[1726612427714,0.082964,60252.0,60250.0,0.001]
[1726612428220,0.082965,60251.0,60250.0,0.001]
[1726612428419,0.082966,60250.0,60249.0,0.05067984]
[1726612428812,0.082966,60250.0,60249.0,0.04967984]
[1726612430436,0.082968,60249.0,60248.0,0.41047984]
[1726612432025,0.082968,60249.0,60248.0,0.3618]
[1726612432026,0.083968,60249.0,60248.0,0.3618]
[1726612433124,0.083968,60249.0,60248.0,0.3628]
[1726612433322,0.083968,60249.0,60248.0,0.5528]
[1726612436025,0.083968,60249.0,60248.0,0.192]
[1726612436224,0.083968,60249.0,60248.0,0.5528]
[1726612436730,0.083968,60249.0,60248.0,0.3628]
[1726612441334,0.083968,60249.0,60248.0,0.5528]
[1726612444133,0.444768,60249.0,60248.0,0.192]
[1726612444327,0.083968,60249.0,60248.0,0.192]
[1726612445930,0.083968,60249.0,60248.0,0.132]
[1726612454229,0.166936,60249.0,60248.0,0.002]
[1726612454533,0.249904,60249.0,60248.0,0.002]
[1726612454724,0.166936,60249.0,60248.0,0.002]
[1726612454925,0.001,60249.0,60248.0,0.084969]
[1726612455133,0.001,60249.0,60248.0,0.175469]
[1726612457040,0.083968,60249.0,60248.0,0.175469]
[1726612457940,0.083968,60249.0,60248.0,0.365469]
[1726612458446,0.083968,60249.0,60248.0,1.463389]
[1726612458447,0.001,60249.0,60248.0,1.463389]
[1726612458632,0.00248979,60253.0,60252.0,0.082964]
[1726612458833,0.08544003,60263.0,60262.0,0.19]
[1726612459035,0.11748438,60263.0,60262.0,0.19]
[1726612459327,0.01118715,60263.0,60262.0,0.27295]
[1726612460733,0.01118715,60263.0,60262.0,0.27395]
[1726612461631,0.01218715,60263.0,60262.0,0.27495]
[1726612467741,0.00349003,60263.0,60262.0,0.27495]
[1726612468137,0.00248855,60272.0,60262.0,1.65064]
[1726612468342,0.3608,60275.0,60274.0,0.082933]
[1726612468544,0.082932,60276.0,60275.0,0.082932]
[1726612468738,0.45252144,60276.0,60275.0,0.082932]
[1726612470541,0.45252144,60276.0,60275.0,0.083932]
[1726612470953,0.45252144,60276.0,60275.0,0.084932]
[1726612473250,0.36958944,60276.0,60275.0,0.274932]
[1726612474950,0.3608,60276.0,60275.0,0.274932]
[1726612476351,0.00248836,60283.0,60276.0,0.082931]
[1726612476555,0.00248836,60283.0,60282.0,0.19]
[1726612476857,0.01128808,60283.0,60282.0,0.272922]
[1726612477054,0.00248836,60283.0,60282.0,0.272922]
[1726612478145,0.00248836,60283.0,60282.0,0.273922]
[1726612479455,0.00248836,60283.0,60282.0,0.274922]
[1726612481543,0.00248836,60283.0,60282.0,0.084922]
[1726612484860,0.08540936,60283.0,60282.0,0.084922]
[1726612485954,0.08540936,60283.0,60282.0,0.002]
[1726612488156,0.11744229,60283.0,60282.0,0.002]
[1726612490157,0.21424229,60283.0,60282.0,0.002]
[1726612490659,0.29716399,60283.0,60282.0,0.002]
[1726612490866,1.39480399,60283.0,60282.0,0.002]
[1726612492463,0.79480399,60283.0,60282.0,0.002]
[1726612492665,0.29716399,60283.0,60282.0,0.002]
[1726612495163,0.33777488,60283.0,60282.0,0.002]
[1726612495368,1.43541753,60283.0,60282.0,0.002]
[1726612495762,1.3948059,60283.0,60282.0,0.002]
[1726612496166,1.4777269,60283.0,60282.0,0.002]
[1726612496366,1.4777269,60283.0,60271.0,0.00248867]
[1726612496367,0.082936,60272.0,60271.0,0.00248867]
[1726612496569,0.165872,60272.0,60271.0,0.00248867]
[1726612497172,0.19791363,60272.0,60271.0,0.00248867]
[1726612497775,0.19791363,60272.0,60271.0,0.00348867]
[1726612498279,0.19791363,60272.0,60271.0,0.00448867]
[1726612498467,0.165872,60272.0,60271.0,0.00448867]
[1726612500868,0.165872,60272.0,60256.0,0.0938]
[1726612500869,0.082951,60261.0,60256.0,0.0938]
[1726612501363,0.082951,60261.0,60256.0,0.176758]
[1726612501764,0.082951,60261.0,60259.0,0.19]
[1726612501966,0.3608,60264.0,60259.0,0.19]
[1726612501967,0.082953,60260.0,60259.0,0.19]
[1726612502965,0.082953,60260.0,60259.0,0.195]
[1726612504169,0.082953,60260.0,60259.0,0.196]
[1726612504566,0.083953,60260.0,60259.0,0.191]
[1726612505069,0.00790891,60260.0,60259.0,0.273954]
[1726612514174,0.09086191,60260.0,60259.0,0.273954]
[1726612514571,0.00790891,60260.0,60259.0,0.273954]
[1726612517269,0.36328901,60266.0,60259.0,0.634754]
[1726612517270,0.00248901,60266.0,60259.0,0.634754]
[1726612517471,0.00248901,60266.0,60265.0,0.272946]
[1726612517970,0.00248901,60266.0,60265.0,0.212946]
[1726612518372,0.3608,60273.0,60272.0,0.082936]
[1726612518581,0.36758928,60273.0,60272.0,0.212936]
[1726612519884,0.36758928,60273.0,60272.0,0.272936]
[1726612520680,0.36758928,60273.0,60272.0,0.273936]
[1726612520888,0.36758928,60273.0,60272.0,0.274936]
[1726612529779,0.00678928,60273.0,60272.0,0.274936]
[1726612530090,0.082933,60275.0,60274.0,0.082933]
[1726612530286,0.11496916,60275.0,60274.0,0.082933]
[1726612530479,0.03203616,60275.0,60274.0,0.082933]
[1726612531187,0.03203616,60275.0,60274.0,0.083933]
[1726612531386,0.03203616,60275.0,60274.0,0.084933]
[1726612531582,0.45071643,60276.0,60275.0,0.082932]
[1726612531786,0.48275259,60276.0,60275.0,0.082932]
[1726612532490,0.48275263,60276.0,60275.0,0.082932]
[1726612532887,0.45071643,60276.0,60275.0,0.082932]
[1726612533485,0.45071643,60276.0,60275.0,0.083932]
[1726612533784,0.45071643,60276.0,60275.0,0.084932]
[1726612540899,0.45071643,60276.0,60275.0,0.002]
[1726612540900,0.53364743,60276.0,60275.0,0.002]
[1726612541301,0.45071643,60276.0,60275.0,0.002]
[1726612543009,0.36778543,60276.0,60275.0,0.002]
[1726612543208,0.36778543,60276.0,60275.0,0.084932]
[1726612544002,0.45071643,60276.0,60275.0,0.084932]
[1726612544897,0.08991643,60276.0,60275.0,0.084932]
[1726612545097,0.45071643,60276.0,60275.0,0.084932]
[1726612546900,0.08991643,60276.0,60275.0,0.084932]
[1726612547104,0.45071643,60276.0,60275.0,0.084932]
[1726612547604,0.45071643,60276.0,60275.0,0.002]
[1726612547997,1.4975435,60276.0,60268.0,0.00248888]
[1726612548196,0.57374,60269.0,60268.0,0.00248888]
[1726612548401,0.64639417,60269.0,60268.0,0.00248888]
[1726612548590,0.082954,60259.0,60252.0,0.00248902]
[1726612548792,0.11499207,60259.0,60255.0,0.082959]
[1726612549001,0.11499207,60259.0,60256.0,0.212958]
[1726612549403,0.11499207,60259.0,60258.0,0.4908]
[1726612550603,0.03203807,60259.0,60258.0,0.4908]
[1726612550793,0.001,60259.0,60258.0,0.4908]
[1726612551705,0.00781293,60259.0,60258.0,0.4908]
[1726612551907,0.001,60259.0,60258.0,0.4908]
[1726612553007,0.001,60259.0,60258.0,0.3608]
[1726612554090,0.083954,60259.0,60258.0,0.3608]
[1726612555005,0.083954,60259.0,60258.0,0.4908]
[1726612556298,0.083954,60259.0,60258.0,0.13]
[1726612556896,0.001,60259.0,60258.0,0.212955]
[1726612560410,0.083954,60259.0,60258.0,0.13]
[1726612560605,0.082955,60258.0,60257.0,0.082956]
[1726612560796,0.082955,60258.0,60255.0,0.13]
[1726612560994,0.082958,60256.0,60254.0,0.445601]
[1726612561209,0.082958,60256.0,60254.0,0.443761]
[1726612561913,0.082958,60256.0,60255.0,0.13]
[1726612562708,0.001,60258.0,60255.0,0.13]
[1726612562906,0.00680249,60261.0,60257.0,0.082957]
[1726612563105,0.082953,60260.0,60259.0,0.13]
[1726612564513,0.082953,60260.0,60259.0,0.131]
[1726612565506,0.083953,60260.0,60259.0,0.213954]
[1726612566709,0.001,60260.0,60259.0,0.213954]
[1726612578316,0.03304468,60260.0,60259.0,0.213954]
[1726612583721,0.082936,60272.0,60259.0,0.213954]
[1726612583722,0.00248893,60273.0,60271.0,0.082936]
[1726612583912,0.15559559,60272.0,60271.0,0.082936]
[1726612584112,0.15559559,60272.0,60271.0,0.212936]
[1726612584314,0.11497712,60272.0,60271.0,0.212936]
[1726612584522,0.11497547,60272.0,60271.0,0.212936]
[1726612584917,0.11497547,60272.0,60271.0,0.213936]
[1726612585122,0.082937,60272.0,60271.0,0.214936]
[1726612585521,0.01057817,60273.0,60272.0,0.082936]
[1726612585720,0.01057817,60273.0,60272.0,0.129636]
[1726612586925,0.01057817,60273.0,60272.0,0.130636]
[1726612587325,0.00957817,60273.0,60272.0,0.130636]
[1726612589227,0.00957817,60273.0,60272.0,0.131636]
[1726612598135,0.00248893,60273.0,60272.0,0.179336]
[1726612605438,0.00248893,60273.0,60272.0,0.262272]
[1726612615343,0.03452342,60273.0,60272.0,0.262272]
[1726612618744,0.03452232,60273.0,60272.0,0.262272]
[1726612620646,0.03203339,60273.0,60272.0,0.345208]
[1726612620844,0.048,60287.0,60282.0,0.082922]
[1726612621048,0.0466,60289.0,60288.0,0.082914]
[1726612621244,0.04060632,60289.0,60288.0,0.082914]
[1726612621543,0.50958339,60296.0,60291.0,0.08291]
[1726612621544,0.0070035,60292.0,60291.0,0.08291]
[1726612621849,0.32164,60300.0,60294.0,0.082906]
[1726612622049,0.082903,60296.0,60295.0,0.13]
[1726612622348,0.12350225,60296.0,60295.0,0.212904]
[1726612623253,0.082903,60296.0,60295.0,0.212904]
[1726612623444,0.082903,60296.0,60295.0,0.213904]
[1726612624755,0.082903,60296.0,60295.0,0.214904]
[1726612639857,0.11492785,60296.0,60295.0,0.214904]
[1726612640164,0.1149284,60296.0,60295.0,0.214904]
[1726612640360,0.1149284,60296.0,60295.0,0.084904]
[1726612640561,0.1149284,60296.0,60295.0,0.002]
[1726612644064,0.1149284,60296.0,60295.0,0.084904]
[1726612644461,0.0320254,60296.0,60295.0,0.084904]
[1726612644764,0.3608,60298.0,60297.0,0.082902]
[1726612644967,0.39282388,60298.0,60297.0,0.212902]
[1726612645163,0.3608,60298.0,60297.0,0.212902]
[1726612646863,0.3608,60298.0,60297.0,0.213902]
[1726612647567,0.3608,60298.0,60297.0,0.214902]
[1726612648081,0.4437,60298.0,60297.0,0.214902]
[1726612648274,0.6566,60298.0,60297.0,0.002]
[1726612649476,0.68862612,60298.0,60297.0,0.002]
[1726612651779,0.72922761,60298.0,60297.0,0.002]
[1726612652163,0.72922761,60298.0,60290.0,0.00248775]
[1726612652164,0.08291,60291.0,60290.0,0.00248775]
[1726612652468,0.24493612,60291.0,60290.0,0.00248775]
[1726612652669,0.74253612,60291.0,60290.0,0.00248775]
[1726612653166,0.82544612,60291.0,60290.0,0.00248775]
[1726612653475,0.36844956,60291.0,60290.0,0.00248775]
[1726612653675,0.24493612,60291.0,60290.0,0.00348775]
[1726612654162,0.24593612,60291.0,60290.0,0.00448775]
[1726612655364,0.25281194,60291.0,60290.0,0.00448775]
[1726612656872,0.33572194,60291.0,60290.0,0.002]
[1726612657074,0.3763273,60291.0,60290.0,0.002]
[1726612657273,0.33572194,60291.0,60290.0,0.002]
[1726612657584,0.37632777,60291.0,60290.0,0.002]
[1726612658665,0.082926,60279.0,60278.0,0.00248811]
[1726612658871,0.47575212,60279.0,60278.0,0.00248811]
[1726612660375,0.445726,60279.0,60278.0,0.00548811]
[1726612661579,0.084926,60279.0,60278.0,0.00548811]
[1726612661782,0.445726,60279.0,60278.0,0.00548811]
[1726612662078,0.46185164,60279.0,60278.0,0.00448811]
[1726612663173,0.73477764,60279.0,60278.0,0.00448811]
[1726612663372,0.65185164,60279.0,60278.0,0.00448811]
[1726612665877,0.73477764,60279.0,60278.0,0.00448811]
[1726612666076,0.082942,60268.0,60267.0,0.00248881]
[1726612667674,0.082942,60268.0,60267.0,0.00348881]
[1726612667879,0.082942,60268.0,60267.0,0.08643181]
[1726612668078,0.082942,60268.0,60267.0,0.08943181]
[1726612668675,0.082937,60272.0,60269.0,0.08294]
[1726612668874,0.082938,60271.0,60270.0,0.082938]
[1726612670680,0.084938,60271.0,60270.0,0.082938]
[1726612671676,0.003,60271.0,60270.0,0.272938]
[1726612677379,0.003,60271.0,60270.0,0.082938]
[1726612678382,0.01022057,60271.0,60270.0,0.082938]
[1726612678690,0.003,60271.0,60270.0,0.082938]
[1726612681086,0.01009654,60271.0,60270.0,0.082938]
[1726612681287,0.003,60271.0,60270.0,0.082938]
[1726612681990,0.003,60271.0,60270.0,0.212938]
[1726612682192,0.085937,60271.0,60270.0,0.212938]
[1726612682392,0.085937,60271.0,60270.0,0.082938]
[1726612682693,0.082942,60269.0,60268.0,0.082941]
[1726612683590,0.082942,60269.0,60267.0,0.00248881]
[1726612683591,0.082942,60268.0,60267.0,0.00248881]
[1726612683793,0.212942,60268.0,60267.0,0.00248881]
[1726612684099,0.211942,60268.0,60267.0,0.00248881]
[1726612684684,0.211942,60268.0,60267.0,0.00448881]
[1726612685193,0.211942,60268.0,60267.0,0.00548881]
[1726612693604,0.572742,60268.0,60267.0,0.00548881]
[1726612698202,0.442742,60268.0,60267.0,0.00548881]
[1726612705110,0.081942,60268.0,60267.0,0.00548881]
[1726612705414,0.442742,60268.0,60267.0,0.003]
[1726612706713,0.572742,60268.0,60267.0,0.003]
[1726612713013,0.211942,60268.0,60267.0,0.003]
[1726612713214,0.572742,60268.0,60267.0,0.003]
[1726612713610,0.572742,60268.0,60267.0,0.05258078]
[1726612715123,0.211942,60268.0,60267.0,0.05258078]
[1726612715327,0.572742,60268.0,60267.0,0.05258078]
[1726612715527,0.211942,60268.0,60267.0,0.05258078]
[1726612715822,0.572742,60268.0,60267.0,0.05258078]
[1726612716616,0.211942,60268.0,60267.0,0.05258078]
[1726612717016,0.572742,60268.0,60267.0,0.05258078]
[1726612717722,0.442742,60268.0,60267.0,0.05258078]
[1726612719515,0.081942,60268.0,60267.0,0.05258078]
[1726612719720,0.442742,60268.0,60267.0,0.05258078]
[1726612719924,0.442742,60268.0,60267.0,0.003]
[1726612720114,0.442742,60268.0,60267.0,0.05258078]
[1726612720823,0.442742,60268.0,60267.0,0.003]
[1726612721719,0.442742,60268.0,60267.0,0.05258078]
[1726612722429,0.525684,60268.0,60267.0,0.05258078]
[1726612723517,0.164884,60268.0,60267.0,0.05258078]
[1726612723723,0.525684,60268.0,60267.0,0.05258078]
[1726612724719,0.164884,60268.0,60267.0,0.05258078]
[1726612724916,0.525684,60268.0,60267.0,0.05258078]
[1726612725927,0.164884,60268.0,60267.0,0.05258078]
[1726612726126,0.525684,60268.0,60267.0,0.05258078]
[1726612727734,0.525684,60268.0,60267.0,0.003]
[1726612729238,0.164884,60268.0,60267.0,0.003]
[1726612729429,0.525684,60268.0,60267.0,0.003]
[1726612730328,0.5577262,60268.0,60267.0,0.003]
[1726612730529,0.082951,60261.0,60260.0,0.04958078]
[1726612730728,0.082951,60261.0,60257.0,0.04958078]
[1726612730729,0.082955,60258.0,60257.0,0.04958078]
[1726612730929,0.082958,60256.0,60255.0,0.05207018]
[1726612731330,0.082958,60256.0,60255.0,0.0024894]
[1726612731831,0.063958,60256.0,60255.0,0.0024894]
[1726612732533,0.064958,60256.0,60255.0,0.0164894]
[1726612733545,0.065958,60256.0,60255.0,0.0194894]
[1726612735737,0.065958,60256.0,60255.0,0.08559711]
[1726612736932,0.07304995,60256.0,60255.0,0.08559711]
[1726612737640,0.07304995,60256.0,60255.0,0.0194894]
[1726612742931,0.00909195,60256.0,60255.0,0.1024484]
[1726612743137,0.00909195,60256.0,60255.0,0.1854074]
[1726612743341,0.00909195,60256.0,60255.0,0.1024484]
[1726612744244,0.00909195,60256.0,60255.0,0.16855611]
[1726612744634,0.00909195,60256.0,60255.0,0.1024484]
[1726612745339,0.00909195,60256.0,60255.0,0.16855611]
[1726612745650,0.00909195,60256.0,60255.0,0.2324484]
[1726612746239,0.09204995,60256.0,60255.0,0.1024484]
[1726612746944,0.22204995,60256.0,60255.0,0.0194894]
[1726612750639,0.22204995,60256.0,60255.0,0.06921411]
[1726612750937,0.58284995,60256.0,60255.0,0.0194894]
[1726612752148,0.58284995,60256.0,60255.0,0.0084894]
[1726612753745,0.94364995,60256.0,60255.0,0.0084894]
[1726612753950,0.94364995,60256.0,60255.0,0.0074894]
[1726612763753,0.58284995,60256.0,60255.0,0.0074894]
[1726612764148,0.45284995,60256.0,60255.0,0.0074894]
[1726612765853,0.09204995,60256.0,60255.0,0.0074894]
[1726612766043,0.45284995,60256.0,60255.0,0.0074894]
[1726612766242,0.58284995,60256.0,60255.0,0.0074894]
[1726612769349,0.66580795,60256.0,60255.0,0.0074894]
[1726612769553,0.66580795,60256.0,60253.0,0.04972471]
[1726612769554,0.16593,60251.0,60250.0,0.04972471]
[1726612769753,0.573765,60251.0,60248.0,0.04972471]
[1726612769955,0.082969,60248.0,60247.0,0.04972471]
[1726612770761,0.080969,60248.0,60247.0,0.04972471]
[1726612771455,0.08297,60247.0,60246.0,0.00248962]
[1726612771655,0.08297,60247.0,60246.0,0.05221433]
[1726612772154,0.08197,60247.0,60246.0,0.05221433]
[1726612772357,0.082966,60250.0,60246.0,0.13248962]
[1726612772557,0.3618,60251.0,60249.0,0.13]
[1726612772757,0.3618,60251.0,60250.0,0.0464]
[1726612772959,0.3608,60251.0,60250.0,0.129366]
[1726612774356,0.3608,60251.0,60250.0,0.19547371]
[1726612775263,0.082961,60254.0,60253.0,0.082962]
[1726612775452,0.443761,60254.0,60253.0,0.212962]
[1726612777154,0.443761,60254.0,60253.0,0.262462]
[1726612777964,0.444761,60254.0,60253.0,0.262462]
[1726612780360,0.3618,60254.0,60253.0,0.262462]
[1726612780569,0.3618,60254.0,60253.0,0.32856971]
[1726612780763,0.3618,60254.0,60253.0,0.262462]
[1726612783170,0.001,60254.0,60253.0,0.262462]
[1726612783367,0.3618,60254.0,60253.0,0.262462]
[1726612784167,0.3618,60254.0,60253.0,0.132462]
[1726612788169,0.444761,60254.0,60253.0,0.19856971]
[1726612788665,0.3618,60254.0,60253.0,0.132462]
[1726612788868,0.444761,60254.0,60253.0,0.132462]
[1726612789355,0.444761,60254.0,60253.0,0.198796]
[1726612789557,0.444761,60254.0,60253.0,0.132462]
[1726612790269,0.444761,60254.0,60253.0,0.19879632]
[1726612791471,0.3618,60254.0,60253.0,0.19879632]
[1726612792368,0.444761,60254.0,60253.0,0.19879632]
[1726612792971,0.083961,60254.0,60253.0,0.19879632]
[1726612793671,0.083961,60254.0,60253.0,0.132462]
[1726612794465,0.083961,60254.0,60253.0,0.19879289]
[1726612795970,0.083961,60254.0,60253.0,0.132462]
[1726612799777,0.083961,60254.0,60253.0,0.18220832]
[1726612800072,0.083961,60254.0,60253.0,0.13270832]
[1726612800275,0.083961,60254.0,60253.0,0.082962]
[1726612801079,0.083961,60254.0,60253.0,0.13271601]
[1726612801670,0.001,60254.0,60253.0,0.13271601]
[1726612802374,0.001,60254.0,60253.0,0.082962]
[1726612808475,0.001,60254.0,60253.0,0.28706574]
[1726612808685,0.00248941,60260.0,60259.0,0.082954]
[1726612808878,0.00248941,60260.0,60259.0,0.212954]
[1726612809770,0.00948941,60260.0,60259.0,0.212954]
[1726612809971,0.01748941,60260.0,60259.0,0.212954]
[1726612817391,0.01748941,60260.0,60259.0,0.082954]
[1726612817687,0.082954,60259.0,60258.0,0.04971701]
[1726612817986,0.082954,60259.0,60246.0,0.46245119]
[1726612817987,0.03204659,60259.0,60254.0,0.08296]
[1726612818183,0.14748941,60260.0,60254.0,0.08296]
[1726612818184,0.082959,60255.0,60254.0,0.08296]
[1726612818386,0.11500559,60255.0,60254.0,0.08296]
[1726612819790,0.11800559,60255.0,60254.0,0.08296]
[1726612820590,0.085959,60255.0,60254.0,0.08296]
[1726612820892,0.11800572,60255.0,60254.0,0.08296]
[1726612821293,0.085959,60255.0,60254.0,0.08296]
[1726612822893,0.09365602,60255.0,60254.0,0.08296]
[1726612824289,0.01069702,60255.0,60254.0,0.08296]
[1726612825989,0.01069702,60255.0,60254.0,0.13267701]
[1726612826189,0.01069702,60255.0,60254.0,0.08296]
[1726612829311,0.09365602,60255.0,60254.0,0.08296]
[1726612849321,0.12570347,60255.0,60254.0,0.08296]
[1726612849914,0.12570383,60255.0,60254.0,0.08296]
[1726612852313,0.01069702,60255.0,60250.0,0.082966]
[1726612852626,0.082964,60252.0,60250.0,0.082966]
[1726612852823,0.082964,60252.0,60251.0,0.082965]
[1726612854928,0.082964,60252.0,60251.0,0.083965]
[1726612856129,0.082964,60252.0,60251.0,0.15030263]
[1726612857622,0.082964,60252.0,60251.0,0.083965]
[1726612857829,0.09065702,60255.0,60254.0,0.082961]
[1726612858732,0.00248931,60259.0,60254.0,0.082961]
[1726612858733,0.00248931,60259.0,60254.0,0.443761]
[1726612858938,0.00248931,60259.0,60258.0,0.17977352]
[1726612859126,0.00248931,60259.0,60258.0,0.13]
[1726612859432,0.00248931,60259.0,60258.0,0.212955]
[1726612859831,0.00248931,60259.0,60258.0,0.082955]
[1726612860040,0.00248931,60259.0,60258.0,0.261355]
[1726612860833,0.00848931,60259.0,60258.0,0.261355]
[1726612861228,0.01448931,60259.0,60258.0,0.261355]
[1726612861424,0.00848931,60259.0,60258.0,0.261355]
[1726612861628,0.00848931,60259.0,60258.0,0.131355]
[1726612862238,0.00848931,60259.0,60258.0,0.21431]
[1726612863226,0.00848931,60259.0,60258.0,0.28062664]
[1726612863431,0.00248931,60259.0,60258.0,0.28062664]
[1726612863831,0.00248931,60259.0,60258.0,0.19767164]
[1726612864138,0.00248931,60259.0,60258.0,0.32767164]